[Event "Romanian Amateur Championship 2024"]
[Site "Eforie Nord"]
[Date "2024.02.28"]
[Round "4.3"]
[White "Leu, Dragos Stefan"]
[Black "Petroff, Vlad"]
[Result "0-1"]
[ECO "A07"]
[WhiteElo "1838"]
[BlackElo "1655"]
[Annotator "NA RC"]
[PlyCount "80"]
[EventDate "2024.02.26"]
[EventType "swiss"]
[EventCountry "ROU"]
[SourceTitle "playchess.com"]
[Source "ChessBase"]
[SourceQuality "1"]
[TimeControl "3600+30"]

1. Nf3 {[%emt 0:00:05]} d5 {[%emt 0:00:16]} 2. g3 {[%emt 0:00:21]} Nc6 {[%emt 0:00:18]} 3. Bg2 {[%emt 0:00:08]} e5 {[%emt 0:00:20]} 4. d3 {[%emt 0:00:06]} f6 {[%emt 0:00:33]} 5. O-O {[%emt 0:00:21]} Be6 {[%emt 0:01:04]} 6. Nbd2 {[%emt 0:04:00] A07: Réti Opening: New York and Capablanca Systems.} Qd7 {[%emt 0:01:15]} 7. a3 {[%emt 0:07:41]} O-O-O {[%emt 0:02:57]} 8. b4 {[%emt 0:01:29]} g5 {[%emt 0:01:32]} 9. Bb2 {[%emt 0:04:10]} h5 {[%emt 0:01:11]} 10. h4 {[%emt 0:12:28]} gxh4 {[%emt 0:03:55]} 11. Nxh4 {[%emt 0:00:06]} Nh6 {[%emt 0:00:23]} 12. e4 {[%emt 0:35:35]} d4 13. Nb3 {[%emt 0:00:00]} Bg4 {[%emt 0:08:26]} 14. Qe1 {[%emt 0:00:00]} Bh3 {[%emt 0:01:18]} 15. b5 {[%emt 0:00:00]} Nb8 {[%emt 0:01:17]} 16. a4 {[%emt 0:00:00]} Bxg2 {[%emt 0:00:11]} 17. Kxg2 {[%emt 0:00:00]} Rg8 {[%emt 0:03:35]} 18. Rc1 {[%emt 0:00:00]} Qg4 {[%emt 0:01:57]} 19. Rh1 {[%emt 0:00:00]} Nd7 {[%emt 0:39:32]} 20. c3 {[%emt 0:00:00]} Qe6 {[%emt 0:00:00]} 21. c4 {[%emt 0:00:00]} Nc5 {[%emt 0:00:00]} (21... Rg4 $11 {remains equal.}) 22. Nxc5 {[%emt 0:00:13]} Bxc5 {[%emt 0:00:00]} 23. a5 {[%emt 0:00:13]} ({White should try} 23. Qe2 $16) 23... Rdf8 {[%emt 0:00:00]} (23... f5 $1 $11) 24. Qe2 {[%emt 0:02:37]} Qf7 {[%emt 0:00:00]} 25. b6 {[%emt 0:00:29]} cxb6 $16 {[%emt 0:00:00]} 26. axb6 {[%emt 0:00:02]} axb6 {[%emt 0:00:00]} 27. Ra1 {[%emt 0:03:56]} Kc7 28. Ba3 {[%emt 0:00:00]} Bxa3 {[%emt 0:00:00]} 29. Rxa3 {[%emt 0:00:00]} Ra8 {[%emt 0:00:00]} 30. Rb3 {[%emt 0:00:00]} Ra6 {[%emt 0:00:00]} 31. Rhb1 {[%emt 0:00:12]} Re8 {[%emt 0:00:00]} 32. c5 {[%emt 0:00:54]} Re6 {[%emt 0:00:00]} 33. Qd2 {[%emt 0:01:19]} Ng4 {[%emt 0:00:00]} 34. cxb6+ {[%emt 0:00:30]} Kb8 {[%emt 0:00:00]} 35. Nf5 {[%emt 0:00:27]} Rc6 {[%emt 0:00:00]} 36. f3 {[%emt 0:00:29]} Ne3+ {[%emt 0:00:00]} 37. Nxe3 {[%emt 0:00:02]} dxe3 {[%emt 0:00:00]} 38. Qxe3 {[%emt 0:00:00]} Rc2+ {[%emt 0:00:00]} 39. Kg1 {[%emt 0:01:24]} Qxb3 {[%emt 0:00:00]} 40. Rxb3 {[%emt 0:00:19]} Ra1+ {[%emt 0:00:00]} 0-1

[Event "Romanian Amateur Championship 2024"]
[Site "Eforie Nord"]
[Date "2024.02.28"]
[Round "4.4"]
[White "Zubcu, Vlad-George"]
[Black "Donici-Maier, David"]
[Result "1-0"]
[ECO "D02"]
[WhiteElo "2166"]
[BlackElo "1845"]
[Annotator "RC"]
[PlyCount "69"]
[EventDate "2024.02.26"]
[EventType "swiss"]
[EventCountry "ROU"]
[SourceTitle "playchess.com"]
[Source "ChessBase"]
[SourceQuality "1"]
[TimeControl "3600+30"]

1. d4 {[%emt 0:07:09]} Nf6 {[%emt 0:00:16]} 2. Nc3 {[%emt 0:00:07]} d5 {[%emt 0:00:07]} 3. Bf4 {[%emt 0:00:05]} a6 {[%emt 0:00:24]} 4. Nf3 {[%emt 0:02:37]} e6 {[%emt 0:01:35]} 5. e3 {[%emt 0:02:21]} c5 {[%emt 0:01:39]} 6. Be2 {[%emt 0:01:26]} Nc6 {[%emt 0:01:24]} 7. O-O {[%emt 0:00:24]} Be7 {[%emt 0:07:29]} 8. h3 {[%emt 0:04:42]} O-O {[%emt 0:00:29]} 9. a3 {[%emt 0:07:32]} b5 {[%emt 0:05:08]} 10. Nb1 {[%emt 0:02:32]} Bb7 {[%emt 0:07:06]} 11. Nbd2 {[%emt 0:00:22]} cxd4 {[%emt 0:04:33]} 12. exd4 {[%emt 0:00:31]} Ne4 {[%emt 0:00:28]} 13. c3 {[%emt 0:01:48]} Bd6 {[%emt 0:02:41]} 14. Bxd6 {[%emt 0:02:56]} Qxd6 {[%emt 0:01:36]} 15. Nxe4 {[%emt 0:00:33]} dxe4 {[%emt 0:00:13]} 16. Nd2 {[%emt 0:00:03]} Ne7 {[%emt 0:08:58]} 17. a4 {[%emt 0:01:49]} e5 {[%emt 0:03:22]} 18. Nb3 {[%emt 0:01:39]} exd4 {[%emt 0:02:29]} 19. Qxd4 {[%emt 0:00:40]} Nf5 {[%emt 0:01:01]} 20. Qxd6 {[%emt 0:00:18]} Nxd6 {[%emt 0:00:04]} 21. Rfd1 {[%emt 0:00:39]} Rad8 {[%emt 0:05:26]} 22. Nc5 {[%emt 0:03:03]} Bc8 {[%emt 0:01:33]} 23. Kf1 {[%emt 0:03:27]} f5 {[%emt 0:03:10]} 24. Rd4 {[%emt 0:00:40]} Kf7 {[%emt 0:03:40]} 25. axb5 {[%emt 0:03:07]} axb5 {[%emt 0:00:29]} 26. Ra5 {[%emt 0:00:24]} b4 {[%emt 0:02:17]} 27. Rxb4 {[%emt 0:00:55]} Be6 {[%emt 0:00:30]} 28. Ra6 {[%emt 0:04:15]} Bc8 {[%emt 0:01:51]} 29. Ra7+ {[%emt 0:00:37]} Kg6 {[%emt 0:01:24]} 30. Ke1 {[%emt 0:01:06]} Rf7 {[%emt 0:00:22]} 31. Ra8 {[%emt 0:00:45]} Re7 {[%emt 0:00:59]} 32. Rd4 {[%emt 0:01:01]} e3 {[%emt 0:02:34]} 33. f4 {[%emt 0:00:56]} Kf7 {[%emt 0:00:29]} 34. Bc4+ {[%emt 0:01:13]} Ke8 {[%emt 0:00:52]} 35. Rxd6 {[%emt 0:00:14]} 1-0

[Event "Romanian Amateur Championship 2024"]
[Site "Eforie Nord"]
[Date "2024.02.28"]
[Round "5.1"]
[White "Tudoroiu, Razvan-Catalin"]
[Black "Raducanu, Andrei-Augustin"]
[Result "0-1"]
[ECO "A45"]
[WhiteElo "2031"]
[BlackElo "1946"]
[Annotator "NA RC"]
[PlyCount "88"]
[EventDate "2024.02.26"]
[EventType "swiss"]
[EventCountry "ROU"]
[SourceTitle "playchess.com"]
[Source "ChessBase"]
[SourceQuality "1"]
[TimeControl "3600+30"]

1. d4 {[%emt 0:00:46]} Nf6 {[%emt 0:00:06]} 2. Bf4 {[%emt 0:00:06]} g6 {[%emt 0:00:08]} 3. Nc3 {[%emt 0:00:06]} d5 {[%emt 0:03:56]} 4. Nb5 {[%emt 0:00:07]} Na6 {[%emt 0:00:28]} 5. e3 {[%emt 0:00:09]} c6 {[%emt 0:03:10]} 6. Nc3 {[%emt 0:00:05]} Nc7 {[%emt 0:01:15]} 7. h4 {[%emt 0:00:16]} h6 {[%emt 0:02:51]} 8. Be2 {[%emt 0:01:26]} Bg7 {[%emt 0:02:46]} 9. Nf3 {[%emt 0:00:14]} Ng4 {[%emt 0:07:49]} 10. Bg3 {[%emt 0:05:42]} Bf5 {[%emt 0:04:22]} 11. h5 {[%emt 0:03:38]} g5 {[%emt 0:07:08]} 12. Bd3 {[%emt 0:06:11]} Bxd3 {[%emt 0:03:48]} 13. Qxd3 {[%emt 0:00:29]} Qd7 {[%emt 0:00:31]} 14. O-O-O {[%emt 0:05:46]} O-O-O {[%emt 0:29:12]} 15. Na4 {[%emt 0:42:59]} b6 {[%emt 0:00:30]} 16. Qb3 {[%emt 0:00:00]} Nb5 {[%emt 0:00:30]} 17. Kb1 {[%emt 0:00:00]} Nd6 {[%emt 0:00:00]} 18. Nd2 {[%emt 0:00:00]} (18. Rhe1 $1 $11) 18... Qb7 $16 {[%emt 0:00:00]} ({Not} 18... Nf5 19. Nc5 Qe8 (19... bxc5 20. Qb8#) 20. Qd3 bxc5 (20... Nxg3 $2 21. Qa6+ Kc7 22. Qxa7+ Kd6 23. Nb7+ Ke6 24. fxg3 $18) 21. Qxf5+ Qd7 22. Qxf7 $16) (18... f5 $11 {keeps the balance.} 19. Bxd6 Qxd6 (19... exd6 20. Rhf1 $15)) 19. f3 {[%emt 0:00:00]} Nf6 {[%emt 0:01:30]} 20. c4 {[%emt 0:00:00]} dxc4 {[%emt 0:00:00]} 21. Nxc4 {[%emt 0:00:00]} b5 {[%emt 0:00:00]} 22. Nxd6+ {[%emt 0:00:00]} exd6 {[%emt 0:00:00]} 23. Nc3 {[%emt 0:04:00]} d5 {[%emt 0:00:00]} 24. Rc1 {[%emt 0:00:00]} a6 {[%emt 0:00:31]} 25. Rc2 {[%emt 0:00:00]} Rhe8 {[%emt 0:00:19]} 26. Ne2 {[%emt 0:00:00]} Re6 {[%emt 0:00:31]} 27. Qd3 {[%emt 0:00:00]} Rde8 {[%emt 0:00:47]} 28. Be5 {[%emt 0:00:00]} Bf8 {[%emt 0:00:18]} 29. Qf5 {[%emt 0:00:00]} Nd7 {[%emt 0:00:55]} 30. Rhc1 {[%emt 0:00:00]} f6 {[%emt 0:00:58]} 31. Bg3 {[%emt 0:00:00]} Kd8 {[%emt 0:00:11]} 32. e4 {[%emt 0:03:30]} Nb6 {[%emt 0:00:54]} 33. exd5 {[%emt 0:00:52]} Nxd5 {[%emt 0:00:27]} 34. Rxc6 {[%emt 0:00:24]} Ne3 {[%emt 0:00:49]} 35. Bc7+ {[%emt 0:00:40]} Kd7 {[%emt 0:00:44]} 36. Qh7+ {[%emt 0:00:29]} R8e7 {[%emt 0:00:07]} 37. d5 {[%emt 0:00:33]} Rxh7 {[%emt 0:00:32]} 38. dxe6+ {[%emt 0:00:06]} Ke8 {[%emt 0:00:33]} 39. Ba5 {[%emt 0:00:17]} Nc4 {[%emt 0:00:14]} 40. Nd4 {[%emt 0:00:37]} Bd6 {[%emt 0:00:46]} 41. b3 {[%emt 0:00:32]} Nxa5 {[%emt 0:00:32]} 42. Rc8+ {[%emt 0:00:47]} Ke7 {[%emt 0:00:01]} 43. Nf5+ {[%emt 0:00:21]} Kxe6 {[%emt 0:00:09]} 44. Nd4+ {[%emt 0:00:47]} Kd7 {[%emt 0:00:23]} 0-1

[Event "Romanian Amateur Championship 2024"]
[Site "Eforie Nord"]
[Date "2024.02.28"]
[Round "5.2"]
[White "Petroff, Vlad"]
[Black "Zubcu, Vlad-George"]
[Result "0-1"]
[ECO "C28"]
[WhiteElo "1655"]
[BlackElo "2166"]
[Annotator "RC"]
[PlyCount "76"]
[EventDate "2024.02.26"]
[EventType "swiss"]
[EventCountry "ROU"]
[SourceTitle "playchess.com"]
[Source "ChessBase"]
[SourceQuality "1"]
[TimeControl "3600+30"]

1. e4 {[%emt 0:00:02]} e5 {[%emt 0:00:52]} 2. Bc4 {[%emt 0:00:11]} Nf6 {[%emt 0:00:27]} 3. Nc3 {[%emt 0:00:05]} Nc6 {[%emt 0:00:43]} 4. d3 {[%emt 0:00:22]} Na5 {[%emt 0:00:28]} 5. Nge2 {[%emt 0:01:35]} Bc5 {[%emt 0:02:52]} 6. O-O {[%emt 0:01:31]} Nxc4 {[%emt 0:02:36]} 7. dxc4 {[%emt 0:00:05]} h6 {[%emt 0:00:35]} 8. h3 {[%emt 0:01:51]} a5 {[%emt 0:01:34]} 9. b3 {[%emt 0:00:25]} O-O {[%emt 0:00:31]} 10. Qd3 {[%emt 0:03:07]} d6 {[%emt 0:02:43]} 11. Be3 {[%emt 0:02:14]} Nd7 {[%emt 0:09:01]} 12. Rfd1 {[%emt 0:07:24]} Bxe3 {[%emt 0:01:28]} 13. Qxe3 {[%emt 0:00:06]} Nc5 {[%emt 0:00:14]} 14. Ng3 {[%emt 0:03:40]} Kh7 {[%emt 0:10:56]} 15. Qf3 {[%emt 0:03:18]} g6 {[%emt 0:01:01]} 16. Re1 {[%emt 0:06:37]} Bd7 {[%emt 0:05:17]} 17. Rad1 {[%emt 0:04:15]} f5 {[%emt 0:02:46]} 18. exf5 {[%emt 0:04:30]} gxf5 {[%emt 0:00:46]} 19. Nd5 {[%emt 0:00:52]} Rc8 {[%emt 0:03:10]} 20. Kh2 {[%emt 0:06:52]} Qg5 {[%emt 0:02:42]} 21. Qh5 {[%emt 0:02:10]} Qg7 {[%emt 0:08:47]} 22. Qf3 {[%emt 0:01:32]} f4 {[%emt 0:01:52]} 23. Ne4 {[%emt 0:01:00]} Nxe4 {[%emt 0:00:12]} 24. Rxe4 {[%emt 0:01:28]} Bf5 {[%emt 0:00:43]} 25. Re2 {[%emt 0:00:05]} b6 {[%emt 0:01:54]} 26. Nc3 {[%emt 0:02:26]} Kh8 {[%emt 0:00:35]} 27. Ne4 {[%emt 0:02:31]} Qf7 {[%emt 0:01:51]} 28. Rde1 {[%emt 0:01:22]} Bg6 {[%emt 0:01:07]} 29. Rd2 {[%emt 0:00:12]} Rg8 {[%emt 0:00:32]} 30. Rg1 {[%emt 0:01:33]} Rcf8 {[%emt 0:00:23]} 31. Qd3 {[%emt 0:02:32]} Rg7 {[%emt 0:01:46]} 32. f3 {[%emt 0:01:35]} Bf5 {[%emt 0:00:35]} 33. Rdd1 {[%emt 0:01:11]} Rfg8 {[%emt 0:01:22]} 34. Qe2 {[%emt 0:01:39]} Qe7 {[%emt 0:01:21]} 35. Rdf1 {[%emt 0:02:16]} Qh4 {[%emt 0:00:19]} 36. Qf2 {[%emt 0:02:09]} Rg3 {[%emt 0:00:13]} 37. Kh1 {[%emt 0:02:04]} Bxh3 {[%emt 0:00:30]} 38. Nxg3 {[%emt 0:00:06]} Be6# {[%emt 0:00:26]} 0-1

[Event "Romanian Amateur Championship 2024"]
[Site "Eforie Nord"]
[Date "2024.02.28"]
[Round "5.3"]
[White "Tanasie, Cosmin"]
[Black "Rusu, Adrian"]
[Result "1-0"]
[ECO "A45"]
[WhiteElo "2017"]
[BlackElo "1734"]
[Annotator "NA RC"]
[PlyCount "101"]
[EventDate "2024.02.26"]
[EventType "swiss"]
[EventCountry "ROU"]
[SourceTitle "playchess.com"]
[Source "ChessBase"]
[SourceQuality "1"]
[TimeControl "3600+30"]

1. d4 {[%emt 0:00:03]} Nf6 {[%emt 0:00:12]} 2. Bf4 {[%emt 0:00:09]} e6 {[%emt 0:00:09]} 3. e3 {[%emt 0:00:06]} c5 {[%emt 0:00:04]} 4. c3 {[%emt 0:00:04]} cxd4 {[%emt 0:00:04]} 5. exd4 {[%emt 0:00:05]} b6 {[%emt 0:00:04]} 6. Nd2 {[%emt 0:00:06]} Be7 {[%emt 0:01:44]} 7. h3 {[%emt 0:00:44]} O-O {[%emt 0:01:15]} 8. Ngf3 {[%emt 0:00:05]} d6 {[%emt 0:01:03]} 9. Bd3 {[%emt 0:00:26]} Ba6 {[%emt 0:00:06]} 10. Bxa6 {[%emt 0:00:21]} Nxa6 {[%emt 0:00:04]} 11. Qe2 {[%emt 0:00:09]} Nc7 {[%emt 0:00:05]} 12. O-O {[%emt 0:00:05]} b5 {[%emt 0:01:31]} 13. Rfc1 {[%emt 0:01:02]} Ncd5 {[%emt 0:02:59]} 14. Bh2 {[%emt 0:00:42]} Qd7 {[%emt 0:00:47]} 15. Ne1 {[%emt 0:09:13]} Rfc8 {[%emt 0:02:14]} 16. Nd3 {[%emt 0:00:27]} a5 {[%emt 0:00:21]} 17. a4 {[%emt 0:10:28]} bxa4 {[%emt 0:07:59]} 18. Qd1 {[%emt 0:02:44]} Nb6 {[%emt 0:03:53]} 19. c4 {[%emt 0:00:59]} Qc6 {[%emt 0:11:32]} 20. c5 {[%emt 0:13:32]} dxc5 {[%emt 0:00:05]} 21. dxc5 {[%emt 0:00:01]} Nbd7 {[%emt 0:00:20]} 22. Qxa4 {[%emt 0:07:39]} Qd5 {[%emt 0:00:59]} 23. c6 {[%emt 0:10:30]} Qxd3 {[%emt 0:08:07]} 24. cxd7 {[%emt 0:00:02]} Qxd7 {[%emt 0:01:25]} 25. Rxc8+ {[%emt 0:01:28]} Qxc8 {[%emt 0:00:51]} 26. Nc4 {[%emt 0:00:28]} Qc5 {[%emt 0:09:57]} 27. Bf4 {[%emt 0:04:25]} Nd5 {[%emt 0:01:53]} 28. Bd2 {[%emt 0:00:27]} Qd4 {[%emt 0:03:31]} 29. Qc6 {[%emt 0:01:25]} Rd8 {[%emt 0:00:26]} 30. Bxa5 {[%emt 0:00:32]} Bc5 {[%emt 0:04:47]} 31. Bxd8 {[%emt 0:00:49]} Qxc4 {[%emt 0:01:57]} 32. Qe8+ {[%emt 0:01:19]} Bf8 {[%emt 0:00:06]} 33. Bg5 {[%emt 0:00:31]} h6 {[%emt 0:00:41]} 34. Bd2 {[%emt 0:00:36]} Qc2 {[%emt 0:01:09]} 35. Ra8 {[%emt 0:00:49]} Qxd2 {[%emt 0:02:14]} 36. Qxf8+ {[%emt 0:00:02]} Kh7 {[%emt 0:00:06]} 37. Qxf7 {[%emt 0:00:25]} Qe1+ {[%emt 0:00:16]} 38. Kh2 {[%emt 0:00:05]} Qe5+ {[%emt 0:01:10]} 39. g3 {[%emt 0:00:02]} Nf6 {[%emt 0:01:25]} 40. Ra7 {[%emt 0:01:00]} Nh5 {[%emt 0:00:23]} 41. Re7 {[%emt 0:00:27]} Qxb2 {[%emt 0:00:55]} 42. Rxe6 {[%emt 0:00:16]} Nf6 {[%emt 0:00:46]} 43. Rxf6 {[%emt 0:00:57]} Qxf6 {[%emt 0:00:13]} 44. Qxf6 {[%emt 0:00:01]} gxf6 {[%emt 0:00:05]} 45. Kg2 {[%emt 0:00:09]} Kg6 {[%emt 0:00:24]} 46. Kf3 {[%emt 0:00:01]} Kf5 {[%emt 0:00:07]} 47. Ke3 {[%emt 0:00:19]} Ke5 {[%emt 0:01:07]} 48. f4+ {[%emt 0:00:25]} Kd5 {[%emt 0:00:08]} 49. g4 {[%emt 0:02:46]} h5 {[%emt 0:02:05]} 50. gxh5 {[%emt 0:00:14]} Ke6 {[%emt 0:00:06]} 51. Ke4 {[%emt 0:00:04]} 1-0

[Event "Romanian Amateur Championship 2024"]
[Site "Eforie Nord"]
[Date "2024.02.28"]
[Round "5.4"]
[White "Barbu, Simon-Alexandru"]
[Black "Gazdaru, Rares"]
[Result "1-0"]
[ECO "B13"]
[WhiteElo "2030"]
[BlackElo "1807"]
[Annotator "NA RC"]
[PlyCount "71"]
[EventDate "2024.02.26"]
[EventType "swiss"]
[EventCountry "ROU"]
[SourceTitle "playchess.com"]
[Source "ChessBase"]
[SourceQuality "1"]
[TimeControl "3600+30"]

1. e4 {[%emt 0:00:10]} c6 {[%emt 0:00:09]} 2. d4 {[%emt 0:00:42]} d5 {[%emt 0:00:19]} 3. exd5 {[%emt 0:00:06]} cxd5 {[%emt 0:00:09]} 4. Bd3 {[%emt 0:00:03]} Nc6 {[%emt 0:00:15]} 5. c3 {[%emt 0:00:05]} Nf6 {[%emt 0:00:10]} 6. Bf4 {[%emt 0:00:11]} Bg4 {[%emt 0:00:23]} 7. Qb3 {[%emt 0:00:21]} Qd7 {[%emt 0:00:19]} 8. Nd2 {[%emt 0:00:16]} e6 {[%emt 0:00:19]} 9. Ngf3 {[%emt 0:00:09]} Be7 {[%emt 0:00:19] 9...Bd6 is setting a new trend.} 10. Ne5 {[%emt 0:07:09] B13: Caro-Kann: Exchange Variation and Panov-Botvinnik Attack.} Qc8 {[%emt 0:01:11]} 11. Nxg4 {[%emt 0:03:27]} Nxg4 {[%emt 0:00:09]} 12. O-O {[%emt 0:00:11]} O-O {[%emt 0:00:12]} 13. Rae1 {[%emt 0:01:09]} Bd8 $146 {[%emt 0:19:22]} ({Predecessor:} 13... Re8 14. Bb1 Nf6 15. Nf3 Na5 16. Qc2 g6 17. Ne5 Nc4 18. Kh1 Nd7 19. Ng4 Nf6 20. Nh6+ Kg7 21. Rd1 Ng8 {½-½ Derkos,D (1895)-Markopoulos,D (1295) Iarissa Summer 2nd 2008 (1)}) 14. Bd6 {[%emt 0:07:45]} Be7 {[%emt 0:04:06]} 15. Bf4 {[%emt 0:00:07]} Bd8 {[%emt 0:03:18]} 16. Qd1 {[%emt 0:02:48]} Nf6 {[%emt 0:00:47]} 17. Re3 {[%emt 0:01:35]} Ne7 {[%emt 0:06:31]} 18. Rh3 {[%emt 0:07:53]} Ng6 {[%emt 0:00:24]} 19. Bd6 {[%emt 0:00:28]} Re8 {[%emt 0:01:49]} 20. Bb5 {[%emt 0:05:27]} Nd7 {[%emt 0:01:24]} 21. Qh5 {[%emt 0:06:33]} Nf6 {[%emt 0:00:17]} 22. Qd1 {[%emt 0:00:13]} Nd7 {[%emt 0:00:05]} 23. f4 {[%emt 0:01:03]} a6 $16 {[%emt 0:02:12]} 24. Bd3 {[%emt 0:01:45]} Qc6 {[%emt 0:08:05]} 25. Be5 {[%emt 0:04:23]} Ndf8 {[%emt 0:10:03]} 26. Qh5 {[%emt 0:00:56]} f6 {[%emt 0:04:35]} 27. Bxg6 {[%emt 0:00:15]} hxg6 {[%emt 0:00:02]} 28. Qh8+ {[%emt 0:00:08]} Kf7 {[%emt 0:00:08]} 29. Nf3 {[%emt 0:00:04]} Re7 {[%emt 0:01:09]} 30. Ng5+ {[%emt 0:03:15]} Ke8 {[%emt 0:00:08]} 31. Qxf8+ {[%emt 0:00:12]} Kd7 {[%emt 0:00:06]} 32. Nf7 {[%emt 0:04:50]} b5 {[%emt 0:02:07]} 33. Rh8 {[%emt 0:01:15]} Rxf7 {[%emt 0:02:27]} 34. Qxf7+ {[%emt 0:00:07]} Be7 {[%emt 0:00:08]} 35. Rxa8 {[%emt 0:00:14]} Qxa8 {[%emt 0:00:02]} 36. Bc7 {[%emt 0:00:50]} 1-0

[Event "Romanian Amateur Championship 2024"]
[Site "Eforie Nord"]
[Date "2024.02.29"]
[Round "6.1"]
[White "Raducanu, Andrei-Augustin"]
[Black "Tanasie, Cosmin"]
[Result "1/2-1/2"]
[ECO "B37"]
[WhiteElo "1946"]
[BlackElo "2017"]
[Annotator "RC"]
[PlyCount "97"]
[EventDate "2024.02.26"]
[EventType "swiss"]
[EventCountry "ROU"]
[SourceTitle "playchess.com"]
[Source "ChessBase"]
[SourceQuality "1"]
[TimeControl "3600+30"]

1. Nf3 {[%emt 0:00:04]} c5 {[%emt 0:00:06]} 2. c4 {[%emt 0:01:12]} g6 {[%emt 0:00:07]} 3. d4 {[%emt 0:01:17]} cxd4 {[%emt 0:00:07]} 4. Nxd4 {[%emt 0:00:07]} Bg7 {[%emt 0:00:30]} 5. e4 {[%emt 0:08:09]} Nc6 {[%emt 0:00:06]} 6. Nc2 {[%emt 0:05:03]} Nf6 {[%emt 0:00:34]} 7. Nc3 {[%emt 0:00:18]} O-O {[%emt 0:01:06]} 8. Be2 {[%emt 0:00:16]} d6 {[%emt 0:00:24]} 9. O-O {[%emt 0:00:03]} Nd7 {[%emt 0:00:46]} 10. Be3 {[%emt 0:02:09]} Nc5 {[%emt 0:00:27]} 11. Nd4 {[%emt 0:06:43]} Ne6 {[%emt 0:02:39]} 12. Nxe6 {[%emt 0:08:27]} Bxe6 {[%emt 0:00:25]} 13. Qd2 {[%emt 0:00:19]} Ne5 {[%emt 0:09:03]} 14. Nd5 {[%emt 0:05:31]} Nd7 {[%emt 0:04:36]} 15. Nf4 {[%emt 0:04:48]} Nc5 {[%emt 0:00:31]} 16. Nxe6 {[%emt 0:01:11]} Nxe6 {[%emt 0:00:05]} 17. Rac1 {[%emt 0:00:34]} a5 {[%emt 0:01:20]} 18. b3 {[%emt 0:06:22]} Qc7 {[%emt 0:06:22]} 19. Rfd1 {[%emt 0:03:03]} Rfd8 {[%emt 0:04:11]} 20. Qc2 {[%emt 0:04:26]} h5 {[%emt 0:09:18]} 21. h4 {[%emt 0:00:38]} Bf6 {[%emt 0:02:29]} 22. g3 {[%emt 0:00:09]} Rac8 {[%emt 0:01:32]} 23. Qb1 {[%emt 0:03:07]} Nc5 {[%emt 0:01:15]} 24. f4 {[%emt 0:01:41]} Bg7 {[%emt 0:01:54]} 25. Bf3 {[%emt 0:00:29]} Qb6 {[%emt 0:00:36]} 26. Kg2 {[%emt 0:00:42]} Qb4 {[%emt 0:00:54]} 27. Qc2 {[%emt 0:04:08]} a4 {[%emt 0:01:11]} 28. Bxc5 {[%emt 0:01:39]} Rxc5 {[%emt 0:00:09]} 29. e5 {[%emt 0:01:15]} b5 {[%emt 0:03:45]} 30. exd6 {[%emt 0:00:21]} Rxd6 {[%emt 0:00:29]} 31. Rxd6 {[%emt 0:00:15]} exd6 {[%emt 0:00:02]} 32. Bd5 {[%emt 0:01:21]} bxc4 {[%emt 0:00:25]} 33. bxc4 {[%emt 0:00:29]} Qb2 {[%emt 0:06:23]} 34. Qxb2 {[%emt 0:00:09]} Bxb2 {[%emt 0:00:01]} 35. Re1 {[%emt 0:00:12]} Kf8 {[%emt 0:00:52]} 36. f5 {[%emt 0:00:50]} gxf5 {[%emt 0:00:25]} 37. Rf1 {[%emt 0:00:06]} Kg7 {[%emt 0:01:54]} 38. Rxf5 {[%emt 0:00:03]} Kg6 {[%emt 0:00:15]} 39. Rg5+ {[%emt 0:01:14]} Kh6 {[%emt 0:00:01]} 40. Rg8 {[%emt 0:00:20]} Rc7 {[%emt 0:06:01]} 41. Rd8 {[%emt 0:00:22]} Ba3 {[%emt 0:00:21]} 42. Ra8 {[%emt 0:00:42]} Re7 {[%emt 0:00:56]} 43. Kf3 {[%emt 0:00:32]} Bc5 {[%emt 0:01:02]} 44. Rxa4 {[%emt 0:00:14]} Re3+ {[%emt 0:00:09]} 45. Kg2 {[%emt 0:00:48]} Re2+ {[%emt 0:00:14]} 46. Kf1 {[%emt 0:01:00]} Re3 {[%emt 0:00:16]} 47. Kg2 {[%emt 0:00:33]} Re2+ {[%emt 0:00:05]} 48. Kf1 {[%emt 0:00:17]} Re3 {[%emt 0:00:59]} 49. Kg2 {[%emt 0:01:22]} 1/2-1/2

[Event "Romanian Amateur Championship 2024"]
[Site "Eforie Nord"]
[Date "2024.02.29"]
[Round "6.3"]
[White "Barbu, Simon-Alexandru"]
[Black "Petroff, Vlad"]
[Result "0-1"]
[ECO "B13"]
[WhiteElo "2030"]
[BlackElo "1655"]
[Annotator "RC"]
[PlyCount "88"]
[EventDate "2024.02.26"]
[EventType "swiss"]
[EventCountry "ROU"]
[SourceTitle "playchess.com"]
[Source "ChessBase"]
[SourceQuality "1"]
[TimeControl "3600+30"]

1. e4 {[%emt 0:00:38]} c6 {[%emt 0:00:10]} 2. d4 {[%emt 0:00:55]} d5 {[%emt 0:00:10]} 3. exd5 {[%emt 0:00:04]} cxd5 {[%emt 0:00:04]} 4. Bd3 {[%emt 0:00:04]} Nc6 {[%emt 0:00:26]} 5. c3 {[%emt 0:00:10]} Qc7 {[%emt 0:01:17]} 6. Ne2 {[%emt 0:00:27]} Bg4 {[%emt 0:00:09]} 7. O-O {[%emt 0:00:05]} e6 {[%emt 0:00:11]} 8. Qe1 {[%emt 0:00:04]} Nf6 {[%emt 0:01:22]} 9. Bg5 {[%emt 0:01:03]} Bxe2 {[%emt 0:02:40]} 10. Qxe2 {[%emt 0:00:33]} Bd6 {[%emt 0:00:16]} 11. g3 {[%emt 0:11:13]} h6 {[%emt 0:08:13]} 12. Be3 {[%emt 0:01:10]} h5 {[%emt 0:08:31]} 13. Nd2 {[%emt 0:10:11]} h4 {[%emt 0:03:31]} 14. Kg2 {[%emt 0:02:39]} O-O-O {[%emt 0:40:30]} 15. b4 {[%emt 0:11:22]} Nh5 16. Qf3 {[%emt 0:12:51]} g5 17. b5 {[%emt 0:00:04]} g4 18. Qe2 {[%emt 0:15:57]} Na5 {[%emt 0:02:00]} 19. c4 {[%emt 0:00:00]} dxc4 {[%emt 0:00:30]} 20. Rac1 {[%emt 0:00:00]} Kb8 21. Nxc4 {[%emt 0:00:00]} Nxc4 22. Rxc4 {[%emt 0:02:00]} Qe7 {[%emt 0:01:30]} 23. b6 {[%emt 0:00:00]} a6 24. Rfc1 {[%emt 0:01:00]} hxg3 {[%emt 0:00:00]} 25. hxg3 {[%emt 0:00:30]} f5 {[%emt 0:01:30]} 26. Rc7 {[%emt 0:00:00]} Rd7 {[%emt 0:00:00]} 27. R7c3 {[%emt 0:00:10]} Qh7 {[%emt 0:00:00]} 28. f4 {[%emt 0:00:48]} gxf3+ {[%emt 0:00:00]} 29. Qxf3 {[%emt 0:00:12]} Rg7 {[%emt 0:00:00]} 30. Kf2 {[%emt 0:00:25]} Rxg3 {[%emt 0:00:00]} 31. Qh1 {[%emt 0:00:13]} Rg7 {[%emt 0:00:00]} 32. Ke1 {[%emt 0:00:48]} Bb4 {[%emt 0:00:00]} 33. Qh2+ {[%emt 0:00:15]} Ka8 {[%emt 0:00:00]} 34. Kd1 {[%emt 0:00:36]} Bxc3 {[%emt 0:00:00]} 35. Rxc3 {[%emt 0:00:01]} Nf6 {[%emt 0:00:00]} 36. Bh6 {[%emt 0:01:30]} Rgg8 {[%emt 0:00:00]} 37. Bxa6 {[%emt 0:00:30]} bxa6 {[%emt 0:03:32]} 38. Rc7 {[%emt 0:00:07]} Rg1+ {[%emt 0:01:42]} 39. Kc2 {[%emt 0:00:47]} Rc1+ {[%emt 0:00:51]} 40. Kb3 {[%emt 0:00:37]} Rxc7 {[%emt 0:00:18]} 41. bxc7 {[%emt 0:00:11]} Kb7 {[%emt 0:01:37]} 42. Qg2+ {[%emt 0:00:41]} Nd5 {[%emt 0:00:00]} 43. Qg5 {[%emt 0:00:38]} Qxh6 {[%emt 0:00:14]} 44. Qd8 {[%emt 0:00:01]} Nxc7 {[%emt 0:00:10]} 0-1